[Event "Early-Titled-Tuesday-Blitz-March-26-2024"]
[Site "Chess.com"]
[Date "2024.03.26"]
[Round "9"]
[White "Massakru"]
[Black "lukazz029"]
[Result "1-0"]
[WhiteElo "2357"]
[BlackElo "2020"]
[TimeControl "180+1"]
[EndTime "9:44:20 PDT"]
[Termination "Massakru won by resignation"]

1. e4 {[%clk 0:03:00.9]} 1... c5 {[%clk 0:02:59]} 2. Nf3 {[%clk 0:03:01.2]} 2...
d6 {[%clk 0:02:59]} 3. c3 {[%clk 0:03:01.9]} 3... Nf6 {[%clk 0:02:58.2]} 4. h3
{[%clk 0:03:02.2]} 4... e6 {[%clk 0:02:54.6]} 5. Bd3 {[%clk 0:03:02.2]} 5... Be7
{[%clk 0:02:54.4]} 6. O-O {[%clk 0:03:01]} 6... Qc7 {[%clk 0:02:54]} 7. Bc2
{[%clk 0:03:01]} 7... O-O {[%clk 0:02:53.3]} 8. d4 {[%clk 0:03:00.9]} 8... Nbd7
{[%clk 0:02:53.3]} 9. Re1 {[%clk 0:03:00]} 9... b6 {[%clk 0:02:50.2]} 10. Na3
{[%clk 0:02:58.8]} 10... a6 {[%clk 0:02:49.5]} 11. Bg5 {[%clk 0:02:53.2]} 11...
e5 {[%clk 0:02:48.2]} 12. d5 {[%clk 0:02:47.9]} 12... c4 {[%clk 0:02:45.9]} 13.
Nb1 {[%clk 0:02:40]} 13... b5 {[%clk 0:02:45.1]} 14. Nbd2 {[%clk 0:02:39.2]}
14... Nc5 {[%clk 0:02:42.2]} 15. Nf1 {[%clk 0:02:32.8]} 15... Rb8 {[%clk
0:02:33.5]} 16. a3 {[%clk 0:02:30.7]} 16... Bd7 {[%clk 0:02:32.5]} 17. Ng3
{[%clk 0:02:30]} 17... Rfe8 {[%clk 0:02:30.7]} 18. Qd2 {[%clk 0:02:26.6]} 18...
a5 {[%clk 0:02:28.4]} 19. Rad1 {[%clk 0:02:24.8]} 19... Qb7 {[%clk 0:02:05.6]}
20. Be3 {[%clk 0:02:18.6]} 20... Rec8 {[%clk 0:02:00.8]} 21. Kh2 {[%clk
0:02:01]} 21... b4 {[%clk 0:01:59.3]} 22. axb4 {[%clk 0:02:01.3]} 22... axb4
{[%clk 0:02:00.2]} 23. cxb4 {[%clk 0:01:50.4]} 23... Qxb4 {[%clk 0:02:01.1]} 24.
Qxb4 {[%clk 0:01:50]} 24... Rxb4 {[%clk 0:02:00.9]} 25. Bc1 {[%clk 0:01:49.8]}
25... Na4 {[%clk 0:01:37.2]} 26. Bxa4 {[%clk 0:01:40.8]} 26... Bxa4 {[%clk
0:01:38.1]} 27. Rd2 {[%clk 0:01:40.2]} 27... g6 {[%clk 0:01:31.7]} 28. Rde2
{[%clk 0:01:34.6]} 28... Kg7 {[%clk 0:01:23.2]} 29. Bd2 {[%clk 0:01:26.7]} 29...
Rb5 {[%clk 0:01:14.4]} 30. Bc3 {[%clk 0:01:25.2]} 30... Nd7 {[%clk 0:01:10]} 31.
Ra1 {[%clk 0:01:21.6]} 31... Nc5 {[%clk 0:01:08.8]} 32. Nd2 {[%clk 0:01:18.7]}
32... Bb3 {[%clk 0:00:58.8]} 33. Nxb3 {[%clk 0:01:15.4]} 33... Nxb3 {[%clk
0:00:56.1]} 34. Ra7 {[%clk 0:01:14.6]} 34... Bg5 {[%clk 0:00:49.2]} 35. Nf1
{[%clk 0:01:11]} 35... h5 {[%clk 0:00:40.2]} 36. g3 {[%clk 0:01:10.6]} 36... h4
{[%clk 0:00:39.7]} 37. Kg2 {[%clk 0:01:07.7]} 37... Nd4 {[%clk 0:00:35.6]} 38.
Re1 {[%clk 0:01:03.9]} 38... hxg3 {[%clk 0:00:32]} 39. fxg3 {[%clk 0:01:02.7]}
39... Rb3 {[%clk 0:00:24.8]} 40. Ne3 {[%clk 0:00:58.4]} 40... Nb5 {[%clk
0:00:23.4]} 41. Rd7 {[%clk 0:00:49.8]} 41... Nxc3 {[%clk 0:00:22.1]} 42. bxc3
{[%clk 0:00:50.1]} 42... Rxc3 {[%clk 0:00:21.8]} 43. Ng4 {[%clk 0:00:48]} 43...
Ra8 {[%clk 0:00:18.6]} 44. Rf1 {[%clk 0:00:47]} 44... Ra2+ {[%clk 0:00:18.4]}
45. Kh1 {[%clk 0:00:46.6]} 45... Rc1 {[%clk 0:00:16.5]} 46. Rxf7+ {[%clk
0:00:44.8]} 46... Kg8 {[%clk 0:00:17.1]} 47. Rf8+ {[%clk 0:00:43.3]} 47... Kg7
{[%clk 0:00:16.7]} 48. Rf7+ {[%clk 0:00:43.2]} 48... Kg8 {[%clk 0:00:16]} 49.
Rf8+ {[%clk 0:00:41.2]} 49... Kg7 {[%clk 0:00:16.3]} 50. Rxc1 {[%clk 0:00:41.9]}
50... Kxf8 {[%clk 0:00:14.4]} 51. Rxc4 {[%clk 0:00:41.3]} 51... Ra3 {[%clk
0:00:12.8]} 52. Rc8+ {[%clk 0:00:37.8]} 52... Kf7 {[%clk 0:00:11.8]} 53. h4
{[%clk 0:00:36.8]} 53... Be7 {[%clk 0:00:10.4]} 54. Kg2 {[%clk 0:00:32.8]} 54...
Ra2+ {[%clk 0:00:10.8]} 55. Kh3 {[%clk 0:00:32.6]} 55... Ra1 {[%clk 0:00:11.3]}
56. Rc7 {[%clk 0:00:31.2]} 56... Re1 {[%clk 0:00:11]} 57. Nh6+ {[%clk
0:00:31.4]} 57... Ke8 {[%clk 0:00:10.6]} 58. Ng8 {[%clk 0:00:31.2]} 58... Bd8
{[%clk 0:00:09.9]} 59. Ra7 {[%clk 0:00:29.1]} 59... Rxe4 {[%clk 0:00:10.2]} 60.
Rg7 {[%clk 0:00:26.4]} 60... Re3 {[%clk 0:00:08]} 61. Rxg6 {[%clk 0:00:26.5]}
61... Rd3 {[%clk 0:00:08.2]} 62. Rxd6 {[%clk 0:00:25.7]} 62... Bc7 {[%clk
0:00:08.4]} 63. Re6+ {[%clk 0:00:25.1]} 63... Kf7 {[%clk 0:00:08.6]} 64. Nh6+
{[%clk 0:00:25]} 64... Kg7 {[%clk 0:00:08.3]} 65. Nf5+ {[%clk 0:00:24.5]} 65...
Kf7 {[%clk 0:00:08.1]} 66. Kg4 {[%clk 0:00:24.2]} 66... Rxd5 {[%clk 0:00:07.6]}
67. Re7+ {[%clk 0:00:24.2]} 67... Kf6 {[%clk 0:00:07.7]} 68. Rxc7 {[%clk
0:00:24.6]} 68... Ra5 {[%clk 0:00:07.5]} 69. Rc6+ {[%clk 0:00:23.7]} 69... Kf7
{[%clk 0:00:07.2]} 70. Kg5 {[%clk 0:00:23.7]} 70... e4 {[%clk 0:00:06.8]} 71. g4
{[%clk 0:00:23.4]} 71... e3 {[%clk 0:00:07.1]} 72. Rc3 {[%clk 0:00:23.4]} 72...
e2 {[%clk 0:00:06.8]} 73. Re3 {[%clk 0:00:23.6]} 73... Re5 {[%clk 0:00:07.1]}
74. Rxe5 {[%clk 0:00:23]} 1-0

[Event "Early-Titled-Tuesday-Blitz-March-26-2024"]
[Site "Chess.com"]
[Date "2024.03.26"]
[Round "9"]
[White "Zhigalko_Sergei"]
[Black "Kunalm64"]
[Result "1-0"]
[WhiteElo "2881"]
[BlackElo "2626"]
[TimeControl "180+1"]
[EndTime "9:44:33 PDT"]
[Termination "Zhigalko_Sergei won by resignation"]

1. e4 {[%clk 0:03:00.9]} 1... c6 {[%clk 0:02:52.5]} 2. d4 {[%clk 0:03:00.1]}
2... d5 {[%clk 0:02:52.9]} 3. e5 {[%clk 0:03:00.7]} 3... Bf5 {[%clk 0:02:52.6]}
4. Nf3 {[%clk 0:03:01.2]} 4... e6 {[%clk 0:02:52.4]} 5. Be2 {[%clk 0:03:01.6]}
5... Nd7 {[%clk 0:02:52.2]} 6. O-O {[%clk 0:03:01.8]} 6... h6 {[%clk 0:02:51.8]}
7. Nbd2 {[%clk 0:03:01.6]} 7... Ne7 {[%clk 0:02:52.2]} 8. a4 {[%clk 0:03:01.2]}
8... a5 {[%clk 0:02:51.7]} 9. Nb3 {[%clk 0:02:57.9]} 9... Bh7 {[%clk 0:02:47.9]}
10. Bd2 {[%clk 0:02:54.8]} 10... Nc8 {[%clk 0:02:41.9]} 11. c4 {[%clk
0:02:25.8]} 11... dxc4 {[%clk 0:02:40.8]} 12. Bxc4 {[%clk 0:02:26.7]} 12... Be7
{[%clk 0:02:40.6]} 13. Qe2 {[%clk 0:02:25.2]} 13... O-O {[%clk 0:02:39.2]} 14.
Rfd1 {[%clk 0:02:18.3]} 14... Qb6 {[%clk 0:02:26.1]} 15. Rac1 {[%clk 0:01:50.7]}
15... Bb4 {[%clk 0:02:25.8]} 16. Be3 {[%clk 0:01:50.1]} 16... Qd8 {[%clk
0:02:24]} 17. Nc5 {[%clk 0:01:41.2]} 17... Nxc5 {[%clk 0:02:15.9]} 18. dxc5
{[%clk 0:01:40.5]} 18... Qc7 {[%clk 0:02:16]} 19. Bd3 {[%clk 0:01:33.2]} 19...
Bxd3 {[%clk 0:02:13.4]} 20. Rxd3 {[%clk 0:00:53.2]} 20... Ne7 {[%clk 0:02:12.9]}
21. Bd2 {[%clk 0:00:24.3]} 21... Rad8 {[%clk 0:01:58.8]} 22. Bxb4 {[%clk
0:00:21.3]} 22... axb4 {[%clk 0:01:59]} 23. Rd6 {[%clk 0:00:20.8]} 23... Nf5
{[%clk 0:01:58.2]} 24. Qc4 {[%clk 0:00:18.3]} 24... Qa5 {[%clk 0:01:54.3]} 25.
b3 {[%clk 0:00:16.6]} 25... Nxd6 {[%clk 0:01:46.2]} 26. exd6 {[%clk 0:00:17.5]}
26... b6 {[%clk 0:01:31.2]} 27. Qd4 {[%clk 0:00:17.8]} 27... bxc5 {[%clk
0:01:21.1]} 28. Rxc5 {[%clk 0:00:18.7]} 28... Qb6 {[%clk 0:01:19.7]} 29. h3
{[%clk 0:00:09.8]} 29... f6 {[%clk 0:01:10.6]} 30. Nh4 {[%clk 0:00:07.8]} 30...
Rd7 {[%clk 0:00:59.9]} 31. a5 {[%clk 0:00:07.3]} 31... Qb8 {[%clk 0:00:54.9]}
32. Ng6 {[%clk 0:00:06.9]} 32... Rxd6 {[%clk 0:00:42.1]} 33. Qa1 {[%clk
0:00:03.4]} 33... Rfd8 {[%clk 0:00:38.4]} 34. Rc1 {[%clk 0:00:04.1]} 34... Qa7
{[%clk 0:00:37.2]} 35. h4 {[%clk 0:00:03.7]} 35... Rd2 {[%clk 0:00:17.7]} 36.
Rf1 {[%clk 0:00:04.2]} 36... R8d5 {[%clk 0:00:15.9]} 37. a6 {[%clk 0:00:04.1]}
37... Rf5 {[%clk 0:00:14.7]} 38. Ne7+ {[%clk 0:00:03.4]} 38... Kh7 {[%clk
0:00:12.9]} 39. Nxf5 {[%clk 0:00:03.3]} 39... exf5 {[%clk 0:00:13.4]} 40. h5
{[%clk 0:00:03.4]} 40... c5 {[%clk 0:00:12.3]} 41. g3 {[%clk 0:00:02.4]} 41...
Rd6 {[%clk 0:00:12.2]} 42. Rc1 {[%clk 0:00:02.3]} 42... Rxa6 {[%clk 0:00:12.2]}
43. Qb1 {[%clk 0:00:03.2]} 43... Qd7 {[%clk 0:00:11.7]} 44. Rxc5 {[%clk
0:00:03]} 44... Ra3 {[%clk 0:00:10.5]} 45. Rxf5 {[%clk 0:00:02.9]} 45... Kh8
{[%clk 0:00:10.7]} 46. Rc5 {[%clk 0:00:03]} 46... Ra8 {[%clk 0:00:10.6]} 47. Qc2
{[%clk 0:00:03.2]} 47... Re8 {[%clk 0:00:10.6]} 48. Qc1 {[%clk 0:00:02.7]} 48...
Qd3 {[%clk 0:00:10.3]} 49. Rc8 {[%clk 0:00:02.9]} 49... Rxc8 {[%clk 0:00:09.9]}
50. Qxc8+ {[%clk 0:00:03.8]} 50... Kh7 {[%clk 0:00:10.5]} 51. Qe6 {[%clk
0:00:04.3]} 51... Qd1+ {[%clk 0:00:09.9]} 52. Kg2 {[%clk 0:00:04.4]} 52... Qxh5
{[%clk 0:00:09.7]} 53. Qe4+ {[%clk 0:00:04.8]} 53... Qg6 {[%clk 0:00:08.6]} 54.
Qxb4 {[%clk 0:00:05.4]} 54... Qc2 {[%clk 0:00:08.5]} 55. Qc4 {[%clk 0:00:05.8]}
55... Qb2 {[%clk 0:00:08]} 56. b4 {[%clk 0:00:06.2]} 56... h5 {[%clk 0:00:08.1]}
57. b5 {[%clk 0:00:06.3]} 57... g5 {[%clk 0:00:08.4]} 58. Qf7+ {[%clk
0:00:05.5]} 58... Kh6 {[%clk 0:00:08.3]} 59. Qf8+ {[%clk 0:00:05.8]} 59... Kg6
{[%clk 0:00:08.2]} 60. Qe8+ {[%clk 0:00:06.1]} 60... Kg7 {[%clk 0:00:08.2]} 61.
Qc6 {[%clk 0:00:05.1]} 61... h4 {[%clk 0:00:07.6]} 62. gxh4 {[%clk 0:00:05]}
62... gxh4 {[%clk 0:00:08.1]} 63. b6 {[%clk 0:00:05.7]} 63... Kg6 {[%clk
0:00:07.9]} 64. b7 {[%clk 0:00:05.7]} 64... Qb3 {[%clk 0:00:07.9]} 65. Qe8+
{[%clk 0:00:05]} 65... Kg5 {[%clk 0:00:08.2]} 66. b8=Q {[%clk 0:00:05.4]} 66...
h3+ {[%clk 0:00:08.7]} 67. Kh2 {[%clk 0:00:05.7]} 67... Qb7 {[%clk 0:00:09.1]}
68. Qxb7 {[%clk 0:00:05.7]} 1-0

[Event "Early-Titled-Tuesday-Blitz-March-26-2024"]
[Site "Chess.com"]
[Date "2024.03.26"]
[Round "9"]
[White "Sanan_Sjugirov"]
[Black "DenLaz"]
[Result "0-1"]
[WhiteElo "3021"]
[BlackElo "3100"]
[TimeControl "180+1"]
[EndTime "9:44:35 PDT"]
[Termination "DenLaz won by resignation"]

1. e4 {[%clk 0:03:00.9]} 1... c5 {[%clk 0:02:59.4]} 2. Nf3 {[%clk 0:03:00.9]}
2... e6 {[%clk 0:03:00]} 3. d4 {[%clk 0:02:44.8]} 3... cxd4 {[%clk 0:03:00.9]}
4. Nxd4 {[%clk 0:02:45.4]} 4... Nc6 {[%clk 0:03:01.1]} 5. Nc3 {[%clk 0:02:46.1]}
5... Qc7 {[%clk 0:03:01.6]} 6. Be3 {[%clk 0:02:40]} 6... a6 {[%clk 0:03:01.7]}
7. Qd2 {[%clk 0:02:40.1]} 7... Nf6 {[%clk 0:02:59.3]} 8. O-O-O {[%clk 0:02:31]}
8... Be7 {[%clk 0:02:59.2]} 9. f3 {[%clk 0:02:30.1]} 9... b5 {[%clk 0:02:58.9]}
10. g4 {[%clk 0:02:17]} 10... Nxd4 {[%clk 0:02:58.4]} 11. Bxd4 {[%clk
0:02:11.5]} 11... Bb7 {[%clk 0:02:58.7]} 12. g5 {[%clk 0:01:43.5]} 12... Nh5
{[%clk 0:02:57.7]} 13. Be5 {[%clk 0:01:43.1]} 13... Qxe5 {[%clk 0:02:57.4]} 14.
Qxd7+ {[%clk 0:01:43.3]} 14... Kf8 {[%clk 0:02:58.1]} 15. Qxb7 {[%clk
0:01:44.2]} 15... Bxg5+ {[%clk 0:02:58.7]} 16. Kb1 {[%clk 0:01:44.2]} 16... Qb8
{[%clk 0:02:59.4]} 17. Qc6 {[%clk 0:01:38.5]} 17... Qc8 {[%clk 0:02:19]} 18.
Qd6+ {[%clk 0:01:35.8]} 18... Be7 {[%clk 0:02:15.3]} 19. Qe5 {[%clk 0:01:35.2]}
19... Nf6 {[%clk 0:02:16]} 20. Rg1 {[%clk 0:01:19.2]} 20... g6 {[%clk
0:02:14.7]} 21. Qf4 {[%clk 0:00:52.3]} 21... b4 {[%clk 0:01:43.1]} 22. e5 {[%clk
0:00:45.6]} 22... Qb8 {[%clk 0:00:59.7]} 23. Na4 {[%clk 0:00:08.8]} 23... Nd5
{[%clk 0:00:56.4]} 24. Qh6+ {[%clk 0:00:07.6]} 24... Kg8 {[%clk 0:00:56.5]} 25.
Bc4 {[%clk 0:00:05.3]} 25... Qxe5 {[%clk 0:00:41.4]} 26. Bxd5 {[%clk 0:00:05.7]}
26... exd5 {[%clk 0:00:42]} 27. Rge1 {[%clk 0:00:06.5]} 27... Qg5 {[%clk
0:00:37.5]} 28. Qh3 {[%clk 0:00:06.2]} 28... Kg7 {[%clk 0:00:33.4]} 29. Nb6
{[%clk 0:00:06.4]} 29... Rad8 {[%clk 0:00:33.2]} 30. f4 {[%clk 0:00:05.5]} 30...
Qh4 {[%clk 0:00:33.4]} 31. Qf3 {[%clk 0:00:03.3]} 31... Rhe8 {[%clk 0:00:28]}
32. Nxd5 {[%clk 0:00:03.1]} 32... Bf8 {[%clk 0:00:28.6]} 33. Rxe8 {[%clk
0:00:02.9]} 33... Rxe8 {[%clk 0:00:29.5]} 34. h3 {[%clk 0:00:02.9]} 34... Re1
{[%clk 0:00:24.6]} 35. Ne3 {[%clk 0:00:02.5]} 35... Rxd1+ {[%clk 0:00:21.8]} 36.
Nxd1 {[%clk 0:00:03.4]} 36... Bd6 {[%clk 0:00:19.7]} 37. f5 {[%clk 0:00:04]}
37... Qd4 {[%clk 0:00:20.1]} 38. fxg6 {[%clk 0:00:03.6]} 38... hxg6 {[%clk
0:00:20.4]} 39. c3 {[%clk 0:00:03.7]} 39... bxc3 {[%clk 0:00:19.7]} 40. Nxc3
{[%clk 0:00:04.6]} 40... Be5 {[%clk 0:00:19.5]} 41. Kc2 {[%clk 0:00:04.9]} 41...
f5 {[%clk 0:00:16.9]} 42. a3 {[%clk 0:00:04.8]} 42... Kh6 {[%clk 0:00:16.7]} 43.
Qe2 {[%clk 0:00:04]} 43... a5 {[%clk 0:00:14.4]} 44. Qf3 {[%clk 0:00:04.2]}
44... Kg5 {[%clk 0:00:14.6]} 45. Qg2+ {[%clk 0:00:04.9]} 45... Kh5 {[%clk
0:00:15.2]} 46. Kb3 {[%clk 0:00:03.9]} 46... Qd3 {[%clk 0:00:11.1]} 47. Qf2
{[%clk 0:00:02.5]} 47... Bd4 {[%clk 0:00:10.3]} 48. Qg2 {[%clk 0:00:02.7]} 48...
g5 {[%clk 0:00:09.4]} 49. Qh2 {[%clk 0:00:02.6]} 49... Kh4 {[%clk 0:00:09.5]}
50. Qg2 {[%clk 0:00:02.9]} 50... Qxh3 {[%clk 0:00:07.7]} 51. Qd5 {[%clk
0:00:02.9]} 51... Bxc3 {[%clk 0:00:08.3]} 52. bxc3 {[%clk 0:00:03.8]} 52... f4
{[%clk 0:00:08.9]} 53. Qd4 {[%clk 0:00:03.7]} 53... Kg3 {[%clk 0:00:07.3]} 54.
Qe5 {[%clk 0:00:02.9]} 54... Qg4 {[%clk 0:00:07]} 55. c4 {[%clk 0:00:03.1]}
55... Kh3 {[%clk 0:00:07.6]} 56. c5 {[%clk 0:00:03.3]} 56... f3 {[%clk
0:00:08.3]} 57. Qe3 {[%clk 0:00:02.9]} 57... Qg3 {[%clk 0:00:08.4]} 58. c6
{[%clk 0:00:02.6]} 58... f2 {[%clk 0:00:08.1]} 59. Qxg3+ {[%clk 0:00:03]} 59...
Kxg3 {[%clk 0:00:09]} 60. c7 {[%clk 0:00:03.9]} 60... f1=Q {[%clk 0:00:09.6]}
61. c8=Q {[%clk 0:00:04.6]} 61... Qb5+ {[%clk 0:00:08.2]} 62. Ka2 {[%clk
0:00:04.1]} 62... Qe5 {[%clk 0:00:08]} 63. Qc4 {[%clk 0:00:02.8]} 63... g4
{[%clk 0:00:08.3]} 64. a4 {[%clk 0:00:02.8]} 64... Kf2 {[%clk 0:00:08.4]} 65.
Qb5 {[%clk 0:00:02.8]} 65... Qe6+ {[%clk 0:00:06.4]} 66. Ka3 {[%clk 0:00:02.8]}
66... g3 {[%clk 0:00:07.1]} 67. Qc5+ {[%clk 0:00:02.5]} 67... Qe3+ {[%clk
0:00:07.6]} 0-1

[Event "Early-Titled-Tuesday-Blitz-March-26-2024"]
[Site "Chess.com"]
[Date "2024.03.26"]
[Round "9"]
[White "Iball95"]
[Black "Kostya0705"]
[Result "1/2-1/2"]
[WhiteElo "2878"]
[BlackElo "2599"]
[TimeControl "180+1"]
[EndTime "9:44:55 PDT"]
[Termination "Game drawn - insufficient material"]

1. e4 {[%clk 0:03:00]} 1... c5 {[%clk 0:02:59.7]} 2. Nf3 {[%clk 0:03:00.8]} 2...
e6 {[%clk 0:03:00.3]} 3. Nc3 {[%clk 0:03:01.2]} 3... Nc6 {[%clk 0:03:00.6]} 4.
d4 {[%clk 0:03:01.5]} 4... cxd4 {[%clk 0:03:01.5]} 5. Nxd4 {[%clk 0:03:02.4]}
5... Qc7 {[%clk 0:03:02.1]} 6. Nxc6 {[%clk 0:03:02.4]} 6... bxc6 {[%clk
0:03:02.1]} 7. Qg4 {[%clk 0:03:02.5]} 7... Nf6 {[%clk 0:03:00.9]} 8. Qg3 {[%clk
0:03:02.8]} 8... Qxg3 {[%clk 0:03:00.8]} 9. hxg3 {[%clk 0:03:03.7]} 9... d5
{[%clk 0:02:59.7]} 10. Bd3 {[%clk 0:03:04]} 10... Bd6 {[%clk 0:02:39.3]} 11. Bg5
{[%clk 0:03:00]} 11... h6 {[%clk 0:02:34.5]} 12. Bd2 {[%clk 0:02:56.6]} 12... e5
{[%clk 0:02:31.7]} 13. O-O-O {[%clk 0:02:50.4]} 13... Be6 {[%clk 0:02:29.2]} 14.
exd5 {[%clk 0:02:43.2]} 14... cxd5 {[%clk 0:02:27.9]} 15. Nb5 {[%clk 0:02:43.6]}
15... Bb8 {[%clk 0:02:25.6]} 16. Bb4 {[%clk 0:02:42]} 16... Kd7 {[%clk
0:02:22.8]} 17. Rhe1 {[%clk 0:02:24.2]} 17... a6 {[%clk 0:02:19.3]} 18. Nc3
{[%clk 0:02:22.5]} 18... a5 {[%clk 0:02:17.9]} 19. Bb5+ {[%clk 0:02:20]} 19...
Kc7 {[%clk 0:02:12.3]} 20. Bc5 {[%clk 0:02:19.7]} 20... Kb7 {[%clk 0:02:10.8]}
21. f3 {[%clk 0:02:15.4]} 21... d4 {[%clk 0:02:07.5]} 22. Na4 {[%clk 0:02:13.9]}
22... Nd5 {[%clk 0:02:00.6]} 23. f4 {[%clk 0:01:37.4]} 23... f6 {[%clk
0:01:54.8]} 24. Bxd4 {[%clk 0:01:34.7]} 24... Bg4 {[%clk 0:01:48.7]} 25. Bc4
{[%clk 0:01:25.2]} 25... Nc7 {[%clk 0:01:28]} 26. Bf2 {[%clk 0:00:49.7]} 26...
Bxd1 {[%clk 0:01:26]} 27. Rxd1 {[%clk 0:00:50.6]} 27... Ba7 {[%clk 0:01:21.4]}
28. Be1 {[%clk 0:00:48.9]} 28... Rad8 {[%clk 0:01:17]} 29. Bd3 {[%clk
0:00:48.9]} 29... Kb8 {[%clk 0:01:10.2]} 30. fxe5 {[%clk 0:00:47.1]} 30... fxe5
{[%clk 0:01:08.2]} 31. Bxa5 {[%clk 0:00:47.5]} 31... e4 {[%clk 0:01:06.9]} 32.
Bxe4 {[%clk 0:00:45.4]} 32... Be3+ {[%clk 0:01:05.5]} 33. Bd2 {[%clk 0:00:45.8]}
33... Rxd2 {[%clk 0:00:38.3]} 34. Rxd2 {[%clk 0:00:46.6]} 34... Rd8 {[%clk
0:00:37.5]} 35. Bd3 {[%clk 0:00:46.4]} 35... Rf8 {[%clk 0:00:36.5]} 36. Kd1
{[%clk 0:00:37.5]} 36... Bxd2 {[%clk 0:00:36]} 37. Kxd2 {[%clk 0:00:38.4]} 37...
Rf2+ {[%clk 0:00:36.1]} 38. Ke3 {[%clk 0:00:39.3]} 38... Rxg2 {[%clk 0:00:35.9]}
39. Kf3 {[%clk 0:00:39.3]} 39... Rg1 {[%clk 0:00:34.2]} 40. Nc5 {[%clk
0:00:37.7]} 40... Nd5 {[%clk 0:00:25.9]} 41. a4 {[%clk 0:00:30.1]} 41... g5
{[%clk 0:00:21.8]} 42. c3 {[%clk 0:00:25.3]} 42... h5 {[%clk 0:00:21.7]} 43. a5
{[%clk 0:00:21.2]} 43... h4 {[%clk 0:00:18.8]} 44. gxh4 {[%clk 0:00:22.1]} 44...
gxh4 {[%clk 0:00:18.9]} 45. Bf5 {[%clk 0:00:21.4]} 45... Rg3+ {[%clk 0:00:17.5]}
46. Ke4 {[%clk 0:00:21.7]} 46... Nf6+ {[%clk 0:00:17]} 47. Ke5 {[%clk
0:00:22.2]} 47... Ng4+ {[%clk 0:00:16.9]} 48. Kf4 {[%clk 0:00:21.6]} 48... Nh6
{[%clk 0:00:16.5]} 49. Be6 {[%clk 0:00:18.2]} 49... Rg6 {[%clk 0:00:17.1]} 50.
Bd7 {[%clk 0:00:15.9]} 50... Nf7 {[%clk 0:00:13.5]} 51. b4 {[%clk 0:00:15.3]}
51... Rg3 {[%clk 0:00:12.2]} 52. Ne4 {[%clk 0:00:14.2]} 52... Rg1 {[%clk
0:00:11.8]} 53. b5 {[%clk 0:00:13]} 53... Kc7 {[%clk 0:00:11.7]} 54. Be6 {[%clk
0:00:12.4]} 54... Nd6 {[%clk 0:00:10.8]} 55. b6+ {[%clk 0:00:12.7]} 55... Kc6
{[%clk 0:00:11.2]} 56. Nxd6 {[%clk 0:00:09.9]} 56... Kxd6 {[%clk 0:00:12.1]} 57.
Bg4 {[%clk 0:00:08.3]} 57... Ra1 {[%clk 0:00:07.5]} 58. Bf3 {[%clk 0:00:04.9]}
58... Rxa5 {[%clk 0:00:06.3]} 59. b7 {[%clk 0:00:05.1]} 59... Ra4+ {[%clk
0:00:06.3]} 60. Ke3 {[%clk 0:00:04]} 60... Kc7 {[%clk 0:00:06.1]} 61. Kf2 {[%clk
0:00:04.2]} 61... Rf4 {[%clk 0:00:06.1]} 62. Kg2 {[%clk 0:00:04.5]} 62... Rf8
{[%clk 0:00:03.1]} 63. Be4 {[%clk 0:00:02.9]} 63... Kd6 {[%clk 0:00:02.2]} 64.
Kh3 {[%clk 0:00:02.8]} 64... Ke5 {[%clk 0:00:02.8]} 65. Bc6 {[%clk 0:00:02.4]}
65... Rh8 {[%clk 0:00:02.4]} 66. Bd7 {[%clk 0:00:02.7]} 66... Rb8 {[%clk
0:00:02.8]} 67. Bc8 {[%clk 0:00:02.9]} 67... Ke4 {[%clk 0:00:03.4]} 68. Kxh4
{[%clk 0:00:02.9]} 68... Kd3 {[%clk 0:00:04.1]} 69. Kg5 {[%clk 0:00:03.5]} 69...
Kxc3 {[%clk 0:00:05]} 70. Kf6 {[%clk 0:00:04.1]} 70... Kb4 {[%clk 0:00:05.9]}
71. Ke6 {[%clk 0:00:04.5]} 71... Ka5 {[%clk 0:00:06.2]} 72. Kd7 {[%clk
0:00:04.9]} 72... Kb6 {[%clk 0:00:07.1]} 73. Kd6 {[%clk 0:00:05.3]} 73... Rxb7
{[%clk 0:00:07.5]} 74. Bxb7 {[%clk 0:00:06.2]} 1/2-1/2